Cogmind - Beta 13 @@@ ROGUE MODE // 2024.07.30 @ 05:10:22 Player: DAFFA Result: Self-destructed Performance ------------- Evolutions (1) 500 Regions Visited (3) 600 Robots Destroyed (37) 185 Value Destroyed (640) 640 Prototype IDs (0) 0 Alien Tech Used (0) 0 Bonus (18) 18 TOTAL SCORE: 1943 Bonus ------- High Alert Combat Kills 18 Cogmind --------- Core Integrity 148/400 Matter 300/300 Energy 20/100 System Corruption 5% Temperature Cool (0) Movement Core (200) Ox3 Location -9/Mines Parts ------- > --- POWER (1) -------- (None) > --- PROPULSION (2) --- (None) > --- UTILITY (4) ------ Medium Storage Unit Signal Interpreter > --- WEAPON (2) ------- (None) > --- INVENTORY (10) --- Compact Wheel Flight Unit Sensor Array Signal Interpreter Terrain Scanner Improved Targeting Computer Improved Targeting Computer Beam Cannon Mining Laser Peak State ------------ > --- POWER ------------ Light Ion Engine > --- PROPULSION ------- Compact Wheel Compact Wheel > --- UTILITY ---------- Medium Storage Unit Signal Interpreter Weapon Shielding Shield Generator > --- WEAPON ----------- Light Cannon Flail > --- INVENTORY -------- Compact Wheel Flight Unit Sensor Array Signal Interpreter Terrain Scanner Improved Targeting Computer Improved Targeting Computer Beam Cannon Mining Laser [Rating: 12] Favorites ----------- Power Light Ion Engine Engine Light Ion Engine Propulsion Wheel Treads Light Treads Leg Aluminum Leg Wheel Wheel Utility Sensor Array Device Sensor Array Storage Small Storage Unit Processor Signal Interpreter Protection Weapon Shielding Weapon Beam Cannon Energy Gun Small Laser Energy Cannon Beam Cannon Ballistic Gun Assault Rifle Ballistic Cannon Light Cannon Impact Weapon Flail Build | -11 -10 -9 -9 ------- Run | Yrd Mat Mat Min Slots Evolved 2 | . . 2 . Power . | . . . . Propulsion . | . . . . Utility 2 | . . 2 . Weapon . | . . . . Parts Attached 31 | 6 8 16 1 Power 3 | 1 1 1 . Engine 3 | 1 1 1 . Core . | . . . . Reactor . | . . . . Propulsion 10 | 2 2 6 . Treads 2 | . . 2 . Leg 4 | 2 . 2 . Wheel 4 | . 2 2 . Hover . | . . . . Flight . | . . . . Utility 10 | 1 2 6 1 Device 4 | . 1 2 1 Storage 2 | 1 . 1 . Processor 2 | . 1 1 . Hackware . | . . . . Protection 2 | . . 2 . Artifact . | . . . . Weapon 8 | 2 3 3 . Energy Gun 1 | 1 . . . Energy Cannon 3 | . 2 1 . Ballistic Gun 1 | 1 . . . Ballistic Cannon 2 | . 1 1 . Launcher . | . . . . Special Weapon . | . . . . Impact Weapon 1 | . . 1 . Slashing Weapon . | . . . . Piercing Weapon . | . . . . Special Melee Weapon . | . . . . Unidentified Prototypes . | . . . . Parts Lost 12 | . 3 1 8 Power 3 | . 1 1 1 Propulsion 3 | . 1 . 2 Utility 3 | . . . 3 Weapon 3 | . 1 . 2 Highest Loss Streak 8 | . 3 1 8 To Critical Strikes . | . . . . Average Slot Usage (%) 92 | . 90 96 77 Engine 8 | . 7 10 7 Treads 1 | . . 3 . Leg 6 | . 12 2 . Wheel 13 | . 14 13 14 Device 10 | . 7 12 7 Storage 12 | . 14 11 11 Processor 8 | . 5 11 11 Protection 4 | . . 8 7 Energy Cannon 11 | . 16 7 . Ballistic Gun 2 | . 5 . . Ballistic Cannon 7 | . 4 11 7 Impact Weapon 2 | . . 3 11 Naked Turns . | . . . . Heaviest Build 21 | 13 15 21 20 Greatest Support 40 | 20 20 40 32 Greatest Overweight (x) 3 | . 1 1 3 Average Overweight (x) . | . . . 1 Largest Inventory Capacity 10 | 8 8 10 10 Average Capacity 8 | 6 8 9 10 Most Carried 10 | 3 8 10 10 Average Carried 5 | . 3 7 9 Final Capacity 10 | 8 8 10 10 Final Carried 10 | . 8 10 9 Class Distribution -------------------- 48% | Mutant 42% | Scavenger-Mutant 9% | Scavenger-Skirmisher Dominant Class ---------------- Mutant | -10/Materials Scavenger-Mutant | -9/Materials Scavenger-Mutant | -9/Mines Resources | -11 -10 -9 -9 ----------- Run | Yrd Mat Mat Min Matter Collected 818 | 161 301 267 89 Remotely . | . . . . Salvage Created 961 | . 523 373 65 Parts 60 | . 33 26 1 Haulers Intercepted 2 | . 1 1 . Recyclers Shooed 2 | . 2 . . Parts Field Recycled . | . . . . Retrieved Matter . | . . . . Parts Self-Destructed . | . . . . Prevented . | . . . . Kills | -11 -10 -9 -9 ------- Run | Yrd Mat Mat Min Combat Hostiles Destroyed 30 | . 14 13 3 Melee 2 | . . . 2 Guns 1 | . 1 . . Cannons 27 | . 13 13 1 Classes Destroyed 10 | . 7 2 1 Worker 2 | . 1 1 . Tunneler 1 | . 1 . . Hauler 2 | . 1 1 . Recycler 1 | . 1 . . Watcher 3 | . 2 1 . Swarmer 18 | . 9 9 . Grunt 8 | . 5 2 1 Brawler 1 | . . 1 . Sentry 1 | . . 1 . Assembled 2 | . . . 2 Best Kill Streak 10 | . 10 8 3 Combat Bots Only 6 | . 6 4 3 Max Kills in Single Turn 2 | . 2 1 1 Gunslinging . | . . . . Exploded . | . . . . Melee 1 | . . . 1 Uniques/NPCs Destroyed . | . . . . Combat | -11 -10 -9 -9 -------- Run | Yrd Mat Mat Min Hostile Shots Fired 262 | . 113 85 64 Missed 64 | . 30 19 15 Damage Taken 1957 | . 716 537 704 Core 442 | . 190 89 163 Absorbed by Shields 32 | . . . 32 Redirected to Shielding 89 | . . 52 37 Regen/Repaired (Parts) 160 | . 86 74 . Core Remaining (%) 62 | 100 24 . . Volleys Fired 111 | . 55 47 9 Largest 2 | . 2 2 1 Hottest 120 | . 120 95 35 Shots Fired 203 | . 108 86 9 Gun 28 | . 28 . . Cannon 175 | . 80 86 9 Launcher . | . . . . Special . | . . . . Kinetic 97 | . 41 47 9 Thermal 106 | . 67 39 . Explosive . | . . . . Electromagnetic . | . . . . Robot Hit Streak 8 | . 6 8 2 Robot Miss Streak 6 | . 6 5 2 Penetration Max . | . . . . Secondary Targets . | . . . . Shots Hit Robots 87 | . 42 37 8 Core Hits 43 | . 21 15 7 Critical Kills 2 | . . . 2 Critical Parts Destroyed . | . . . . Critical Strikes 6 | . . 4 2 Blast 4 | . . 4 . Smash 2 | . . . 2 Melee Attacks 2 | . . . 2 Impact 2 | . . . 2 Slashing . | . . . . Piercing . | . . . . Sneak Attacks . | . . . . Combat Hostiles . | . . . . Follow-up Attacks . | . . . . Damage Inflicted 1772 | . 821 705 246 Guns 177 | . 177 . . Cannons 1496 | . 644 705 147 Explosions . | . . . . Melee 99 | . . . 99 Ramming . | . . . . Kinetic 766 | . 266 353 147 Thermal 907 | . 555 352 . Explosive . | . . . . Electromagnetic . | . . . . Impact 99 | . . . 99 Slashing . | . . . . Piercing . | . . . . Highest Corruption 5 | . . . 5 Average Corruption 5 | . . . 5 Corruption Purged . | . . . . Corruption Blocked . | . . . . Effects 1 | . . . 1 Matter Fused 1 | . . . 1 Overload Shots . | . . . . Overflow Damage 20 | . . 20 . Projectiles 20 | . . 20 . Explosions . | . . . . Melee . | . . . . Knockbacks 14 | . . 7 7 Impact . | . . . . Kinetic 11 | . . 6 5 Secondary 3 | . . 1 2 Self-Inflicted Damage . | . . . . Shots . | . . . . Rammed 1 | . . 1 . Targets Rammed 1 | . . 1 . Kicked . | . . . . Crushed . | . . . . Highest Temperature 311 | . 246 311 34 Average Temperature 94 | . 79 120 13 Received Heat Transfer 334 | . 102 27 205 Siege Activations . | . . . . Robots Corrupted . | . . . . Combat Hostiles . | . . . . Parts Fried . | . . . . Impact Corruptions . | . . . . Robots Melted . | . . . . Combat Hostiles . | . . . . Parts Melted 2 | . 1 1 . Heat Transferred 1912 | . 1172 740 . Parts Sabotaged . | . . . . Parts Stolen . | . . . . Parts Stripped . | . . . . Power Chain Reactions . | . . . . Alert | -11 -10 -9 -9 ------- Run | Yrd Mat Mat Min Peak Influence 523 | . 334 523 198 Initial 178 | . . 120 178 Average 257 | . 186 343 173 Maximum Alert Level 2 | . 1 2 . Low Security (%) 39 | 100 53 20 100 Level 1 44 | . 46 48 . Level 2 15 | . . 31 . Level 3 . | . . . . Level 4 . | . . . . Level 5 . | . . . . High Security . | . . . . Max Security . | . . . . Squads Dispatched 3 | . 2 1 . Investigation 1 | . . 1 . Extermination . | . . . . Reinforcement 2 | . 2 . . Assault . | . . . . Garrison . | . . . . Intercept . | . . . . Searches Triggered . | . . . . Construction Impeded . | . . . . Haulers Reinforced . | . . . . Active Scanning Responses . | . . . . Cargo Convoy Interrupts . | . . . . Stealth | -11 -10 -9 -9 --------- Run | Yrd Mat Mat Min Distress Signals 3 | . 3 . . Communications Jammed . | . . . . Distress Signals . | . . . . Times Spotted 81 | . 27 25 29 Peak Tracking Total 25 | . 7 7 25 Tactical Retreats 5 | . . 4 1 Traps | -11 -10 -9 -9 ------- Run | Yrd Mat Mat Min Traps Triggered 2 | . . 2 . Indirectly . | . . . . Trap Hack Attempts . | . . . . Triggered . | . . . . Disarmed . | . . . . Reprogrammed . | . . . . Reused . | . . . . Traps Extracted . | . . . . Installed . | . . . . Triggered . | . . . . Machines | -11 -10 -9 -9 ---------- Run | Yrd Mat Mat Min Machines Disabled 4 | . 4 . . Max in Single Turn 1 | . 1 . . Machines Repaired . | . . . . Machines Dismantled . | . . . . Machines Sabotaged . | . . . . Overloaded Fab Kills . | . . . . Hacking | -11 -10 -9 -9 --------- Run | Yrd Mat Mat Min Machines Accessed 6 | . 3 3 . Terminals 4 | . 2 2 . Fabricators . | . . . . Repair Stations 2 | . 1 1 . Recycling Units . | . . . . Scanalyzers . | . . . . Garrison Access . | . . . . Total Hacks 13 | . 8 5 . Successful 5 | . 3 2 . Failed 8 | . 5 3 . Catastrophic 2 | . 1 1 . Database Lockouts . | . . . . Manual 8 | . 5 3 . Terminals 8 | . 5 3 . Fabricators . | . . . . Repair Stations 5 | . 3 2 . Recycling Units . | . . . . Scanalyzers . | . . . . Garrison Access . | . . . . Terminal Hacks 1 | . 1 . . Alert Level 1 | . 1 . . Fabricator Hacks . | . . . . Repair Station Hacks 4 | . 2 2 . Scan Component 2 | . 1 1 . Repair 2 | . 1 1 . Recycling Unit Hacks . | . . . . Scanalyzer . | . . . . Garrison Access Hacks . | . . . . Unauthorized Hacks . | . . . . Terminals . | . . . . Fabricators . | . . . . Repair Stations . | . . . . Recycling Units . | . . . . Scanalyzers . | . . . . Garrison Access . | . . . . Data Cores Recovered . | . . . . Used . | . . . . Hacking Detections 2 | . 1 1 . Full Trace Events . | . . . . Feedback Events . | . . . . Feedback Blocked . | . . . . Robot Schematics Acquired . | . . . . Robots Built . | . . . . Authchips . | . . . . Time . | . . . . Total Robot Build Rating . | . . . . Part Schematics Acquired . | . . . . Parts Built . | . . . . Authchips . | . . . . Time . | . . . . Total Part Build Rating . | . . . . Parts Repaired 2 | . 1 1 . Time 52 | . 26 26 . Parts Recycled . | . . . . Recycled Matter . | . . . . Retrieved Matter . | . . . . Retrieved Components . | . . . . Parts Scanalyzed . | . . . . Part Schematics Acquired . | . . . . Parts Damaged . | . . . . Bothacking | -11 -10 -9 -9 ------------ Run | Yrd Mat Mat Min Used RIF Installer . | . . . . Robots Hacked . | . . . . Non-combat . | . . . . Combat . | . . . . Robot Hacks Applied . | . . . . Relay Couplers Released . | . . . . Fabnet Peak Effective % . | . . . . Robots Rewired . | . . . . Allies Hacked . | . . . . Hacks Repelled . | . . . . Allies | -11 -10 -9 -9 -------- Run | Yrd Mat Mat Min Total Allies . | . . . . Largest Group . | . . . . Highest-Rated Group . | . . . . Highest-Rated Ally . | . . . . Total Orders . | . . . . Ally Attacks . | . . . . Total Damage . | . . . . Kills . | . . . . Allies Corrupted . | . . . . Allies Melted 1 | . . . 1 Intel | -11 -10 -9 -9 ------- Run | Yrd Mat Mat Min Robot Analysis Total . | . . . . Derelict Logs Recovered . | . . . . Drone Launches . | . . . . Drone Recoveries . | . . . . Exploration | -11 -10 -9 -9 ------------- Run | Yrd Mat Mat Min Turns Passed 1461 | 60 644 729 28 Spaces Moved 792 | 47 306 436 3 Core 12 | 11 . . 1 Treads 57 | . . 57 . Legs 222 | 36 155 31 . Wheels 501 | . 151 348 2 Hover . | . . . . Flight . | . . . . Fastest Speed 50 | 50 80 80 100 Average Speed 108 | 103 103 112 133 Slowest Speed 240 | 120 190 240 200 Overloaded Moves . | . . . . Propulsion Burnouts . | . . . . Robots Hopped . | . . . . Cave-ins Triggered . | . . . . Exploration Rate (%) 25 | 3 50 47 3 Regions Visited 3 Branch Regions 1 Pre-discovered Areas . | . . . . Known Exits Taken 1 | . . 1 . Unknown Exits Taken 2 | 1 1 . . Scrap Searched . | . . . . Spaces Dug . | . . . . Terrain Destroyed . | . . . . Melee . | . . . . Projectile . | . . . . AOE . | . . . . Terrain Rammed . | . . . . Walls Destroyed . | . . . . Machines Disabled . | . . . . Actions | -11 -10 -9 -9 --------- Run | Yrd Mat Mat Min Total 1184 | 58 523 588 15 Wait 200 | . 137 63 . Move 789 | 46 305 435 3 Hop . | . . . . Pick Up 39 | 6 16 17 . Fast Attach . | . . . . Attach 17 | 6 4 6 1 Detach . | . . . . Swap 14 | . 4 10 . Drop 11 | . 2 9 . Fire 111 | . 55 47 9 Melee 2 | . . . 2 Ram 1 | . . 1 . Kick . | . . . . Crush . | . . . . Escape Stasis . | . . . . Rewire . | . . . . Trap . | . . . . Miscellaneous . | . . . . Route ------- -11/Scrapyard -10/Materials -9/Materials -9/Mines History --------- Turn | Location | Event 13 | -11/Scrapyard | Discovered new exit (range 15) 61 | -11/Scrapyard | Entered Materials 307 | -10/Materials | Build established: Mutant 322 | -10/Materials | Core integrity fell below 50% 350 | -10/Materials | Lost 3 parts (1p1n1w) 646 | -10/Materials | Discovered new exit (range 3) 691 | -10/Materials | Repaired Beam Cannon 705 | -10/Materials | Entered another Materials area 705 | -9/Materials | Evolved 2 slots: Utility x2 1139 | -9/Materials | Build established: Scavenger-Mutant 1202 | -9/Materials | Discovered new exit (range 10) 1378 | -9/Materials | Identified exit to Mines 1418 | -9/Materials | Repaired Beam Cannon 1434 | -9/Materials | Entered Mines 1435 | -9/Mines | Assembled infested the area 1440 | -9/Mines | Assisted by a Guerilla fighting off Assembled 1460 | -9/Mines | Core integrity fell below 50% 1462 | -9/Mines | Self-destructed Last Messages --------------- 01453_ Lgt. Cannon destroyed. 01454_ Com. Wheel destroyed. 01454_ Knocked back. 01454_ Acquired 14 matter. 01455_ HV Slug penetrates Wall. 01455_ as-58266 destroyed. 01455_ as-04519 suffers critical hit (Smash). 01455_ as-04519 destroyed. 01456_ Acquired 9 matter. 01456_ Com. Wheel destroyed. 01456_ Critical hit (Burn: +80). 01458_ Shield Generator destroyed. 01458_ Acquired 50 matter. 01458_ as-14949 destroyed. 01460_ System corrupted: Matter fused (-5). 01460_ Acquired 5 matter. 01460_ FK-YPI(h) critical meltdown. 01460_ as-49144 suffers critical hit (Smash). 01460_ as-49144 destroyed. 01462_ Flail destroyed. Map ----- +----------------------------------------------------+ | ??????????????????????????????????? | | ??????????????????????????????????? | | ??????????????????????????????????? | | ??????????????????????????????????? | | ??????????????????????????????????? | | ??????????????????????????????????? | | ??????????????????????????????????? | | ??????????????????????????????????? | | ??????????????????????????????????? | | ??????????????????????????????????? | | ??????????????????????????????????? | | ????????????? ???????????????????? | | ???????????? ?#???????????????? | | ???????????? ??????????????? | | ???????????? ???????????????? | | ???????????? "????????????????? | | ???????????? ?????????????????? | | ??????????? ??????????????????? | | ??????????? ???????????????????? | | ??????????? %????????????????????? | | ??????????#% #????????????????????? | | ???????###"%a#????????????????????? | | ??????##%%#a!#????????????????????? | | ??????# [[*a%##???????????????????? | | ??????#%aaaa%a#???????????????????? | | ??????##=%@%=[#???????????????????? | | ???????##%%=!!#???????????????????? | | ????????##=/a##???????????????????? | | ??????????####????????????????????? | | ??????????????????????????????????? | | | | | | | | | | | | | | | | | | | | | | | | | | | | | | | | | | | | | | | | | +----------------------------------------------------+ Best States ------------- Heat Dissipation 28 Energy Generation 10 Energy Capacity 250 Matter Stores 300 Matter Capacity 300 Sight Range 18 Robot Scan Range 14 Terrain Scan Range 14 Terrain Scan Density 10 Weapon Shielding 33 Evasion (%) 55 Recoil Reduction 2 Item Schematics ----------------- None Robot Schematics ------------------ None Fabricated ------------ Nothing Alien Tech Used ----------------- None Achievements -------------- Hunted Challenges ------------ None Game ------ Seed ThermicCorruptionProtection Manual? 0 Play Time 00:19:36 Cumulative 7.9 hours Start 2024.07.30 @ 04:51:26 End 2024.07.30 @ 05:10:22 Sessions 1 Manual Loads 0 Difficulty Rogue Special Mode None Game No. 12 Rogue 8 Adventurer 4 Explorer 0 Win Type - Total 0 Types 0/0/0/0/0/0/0/0/0 Lore% 2 Gallery% 14 Achievement% 11 Wizard Run 0 Options --------- Layout 1 ASCII 0 Keyboard 0 Movement Mouse Keybinds 0 Fullscreen 1 Font 24/Smallcaps Map View 50x35 Zoom Use 1% Tactical HUD 1 Map Filters NONE Filters NONE Steam 1 RUN: 34778125-591d-4755-945d-2ac33ec600c4